[Event "Early-Titled-Tuesday-Blitz-June-18-2024"]
[Site "Chess.com"]
[Date "2024.06.18"]
[Round "3"]
[White "Oleg_Papayan"]
[Black "Kostukov_Alex"]
[Result "1/2-1/2"]
[WhiteElo "2563"]
[BlackElo "2317"]
[TimeControl "180+1"]
[EndTime "8:30:29 PDT"]
[Termination "Game drawn by repetition"]

1. d4 {[%clk 0:03:00.9]} 1... g6 {[%clk 0:02:56]} 2. Nc3 {[%clk 0:02:59]} 2...
Bg7 {[%clk 0:02:53.9]} 3. e4 {[%clk 0:02:55.6]} 3... d6 {[%clk 0:02:52.1]} 4.
Nf3 {[%clk 0:02:54.9]} 4... e5 {[%clk 0:02:51.1]} 5. dxe5 {[%clk 0:02:51.6]}
5... dxe5 {[%clk 0:02:50.7]} 6. Qxd8+ {[%clk 0:02:52.4]} 6... Kxd8 {[%clk
0:02:50.5]} 7. Bc4 {[%clk 0:02:52.7]} 7... f6 {[%clk 0:02:49.5]} 8. Be3 {[%clk
0:02:43.9]} 8... Nd7 {[%clk 0:02:41.4]} 9. O-O-O {[%clk 0:02:42]} 9... Bh6
{[%clk 0:02:38]} 10. Nd5 {[%clk 0:02:21.4]} 10... Bxe3+ {[%clk 0:02:32.7]} 11.
Nxe3 {[%clk 0:02:21.5]} 11... c6 {[%clk 0:02:28.9]} 12. Rd6 {[%clk 0:02:13.4]}
12... Ke7 {[%clk 0:02:28.2]} 13. Rhd1 {[%clk 0:02:13.3]} 13... Nf8 {[%clk
0:01:12]} 14. Rd8 {[%clk 0:01:47.2]} 14... b5 {[%clk 0:00:54.1]} 15. Bb3 {[%clk
0:01:31.3]} 15... Bb7 {[%clk 0:00:44.9]} 16. Rxa8 {[%clk 0:01:17.8]} 16... Bxa8
{[%clk 0:00:44.1]} 17. c4 {[%clk 0:01:14.1]} 17... a6 {[%clk 0:00:41.3]} 18. c5
{[%clk 0:01:05.9]} 18... Nd7 {[%clk 0:00:37.7]} 19. Bxg8 {[%clk 0:00:54]} 19...
Rxg8 {[%clk 0:00:36.8]} 20. b4 {[%clk 0:00:54.9]} 20... Rd8 {[%clk 0:00:24.8]}
21. Kc2 {[%clk 0:00:50]} 21... Nf8 {[%clk 0:00:23.5]} 22. Ra1 {[%clk 0:00:33]}
22... Bb7 {[%clk 0:00:21.1]} 23. a4 {[%clk 0:00:32.8]} 23... Ra8 {[%clk
0:00:19.1]} 24. axb5 {[%clk 0:00:33.3]} 24... axb5 {[%clk 0:00:19.1]} 25. Ra5
{[%clk 0:00:25.4]} 25... Ne6 {[%clk 0:00:16.2]} 26. Rxa8 {[%clk 0:00:18.7]}
26... Bxa8 {[%clk 0:00:15.8]} 27. g3 {[%clk 0:00:17.9]} 27... Bb7 {[%clk
0:00:16.2]} 28. Kd3 {[%clk 0:00:16.9]} 28... Bc8 {[%clk 0:00:15.9]} 29. Nd2
{[%clk 0:00:16.6]} 29... Nc7 {[%clk 0:00:14.6]} 30. Nb3 {[%clk 0:00:16.7]} 30...
Be6 {[%clk 0:00:14.4]} 31. Na5 {[%clk 0:00:17.1]} 31... Kd7 {[%clk 0:00:14.8]}
32. f4 {[%clk 0:00:15.8]} 32... g5 {[%clk 0:00:12.6]} 33. f5 {[%clk 0:00:15]}
33... Ba2 {[%clk 0:00:10.9]} 34. Ng4 {[%clk 0:00:15.9]} 34... Ne8 {[%clk
0:00:09.3]} 35. Ke3 {[%clk 0:00:11.3]} 35... h5 {[%clk 0:00:09]} 36. Nf2 {[%clk
0:00:10.5]} 36... Bf7 {[%clk 0:00:07.2]} 37. h4 {[%clk 0:00:10.8]} 37... g4
{[%clk 0:00:06.3]} 38. Nd1 {[%clk 0:00:09.5]} 38... Kc7 {[%clk 0:00:06.6]} 39.
Nc3 {[%clk 0:00:09.5]} 39... Ng7 {[%clk 0:00:05.5]} 40. Nb1 {[%clk 0:00:09.4]}
40... Ne8 {[%clk 0:00:05.7]} 41. Nd2 {[%clk 0:00:09.7]} 41... Ng7 {[%clk
0:00:05.8]} 42. Nab3 {[%clk 0:00:09.9]} 42... Bxb3 {[%clk 0:00:04.7]} 43. Nxb3
{[%clk 0:00:10.1]} 43... Ne8 {[%clk 0:00:04.9]} 44. Na5 {[%clk 0:00:10.3]} 44...
Ng7 {[%clk 0:00:04.7]} 45. Nb3 {[%clk 0:00:10.2]} 45... Ne8 {[%clk 0:00:04.9]}
46. Nc1 {[%clk 0:00:10.6]} 46... Ng7 {[%clk 0:00:05.1]} 47. Nd3 {[%clk
0:00:10.3]} 47... Ne8 {[%clk 0:00:05.2]} 48. Ne1 {[%clk 0:00:09.1]} 48... Kd7
{[%clk 0:00:05.4]} 49. Kd2 {[%clk 0:00:09.4]} 49... Nc7 {[%clk 0:00:05.4]} 50.
Nd3 {[%clk 0:00:09.7]} 50... Na6 {[%clk 0:00:05.3]} 51. Kc3 {[%clk 0:00:08.9]}
51... Ke7 {[%clk 0:00:05.4]} 52. Nc1 {[%clk 0:00:07.9]} 52... Kd7 {[%clk
0:00:05.7]} 53. Nb3 {[%clk 0:00:08.5]} 53... Kc7 {[%clk 0:00:06.1]} 54. Na5
{[%clk 0:00:08.7]} 54... Nb8 {[%clk 0:00:05.3]} 55. Nb3 {[%clk 0:00:08.9]} 55...
Na6 {[%clk 0:00:05.5]} 56. Nc1 {[%clk 0:00:09.3]} 56... Kd7 {[%clk 0:00:05.8]}
57. Nd3 {[%clk 0:00:09.9]} 57... Nc7 {[%clk 0:00:05.9]} 58. Nc1 {[%clk
0:00:07.9]} 58... Na6 {[%clk 0:00:06]} 1/2-1/2

[Event "Early-Titled-Tuesday-Blitz-June-18-2024"]
[Site "Chess.com"]
[Date "2024.06.18"]
[Round "3"]
[White "Fandorine"]
[Black "BigAl"]
[Result "0-1"]
[WhiteElo "2940"]
[BlackElo "2557"]
[TimeControl "180+1"]
[EndTime "8:30:31 PDT"]
[Termination "BigAl won by resignation"]

1. e4 {[%clk 0:03:00.9]} 1... c6 {[%clk 0:02:59.4]} 2. d4 {[%clk 0:02:58.7]}
2... d5 {[%clk 0:03:00]} 3. e5 {[%clk 0:02:59.3]} 3... Bf5 {[%clk 0:03:00.3]} 4.
h4 {[%clk 0:02:59.3]} 4... c5 {[%clk 0:03:00.5]} 5. dxc5 {[%clk 0:02:58]} 5...
Nc6 {[%clk 0:03:00.4]} 6. g4 {[%clk 0:02:51.9]} 6... Bd7 {[%clk 0:03:00.5]} 7.
Qxd5 {[%clk 0:02:48.9]} 7... e6 {[%clk 0:03:00.6]} 8. Qe4 {[%clk 0:02:44.4]}
8... Bxc5 {[%clk 0:02:59.3]} 9. Nc3 {[%clk 0:02:44.8]} 9... Nd4 {[%clk
0:02:54.6]} 10. Rh3 {[%clk 0:02:19.4]} 10... Bc6 {[%clk 0:02:46.4]} 11. Qd3
{[%clk 0:02:19]} 11... Qc7 {[%clk 0:02:41.2]} 12. Ne4 {[%clk 0:01:48.3]} 12...
Qxe5 {[%clk 0:02:37.5]} 13. Re3 {[%clk 0:01:48]} 13... Bxe4 {[%clk 0:02:05.7]}
14. Rxe4 {[%clk 0:01:41.7]} 14... Qh2 {[%clk 0:02:05.9]} 15. Rxd4 {[%clk
0:01:17.7]} 15... Bxd4 {[%clk 0:02:05.8]} 16. Qxd4 {[%clk 0:01:18.3]} 16... Qxg1
{[%clk 0:01:24.6]} 17. Bg5 {[%clk 0:01:18.4]} 17... Nf6 {[%clk 0:01:14.4]} 18.
O-O-O {[%clk 0:01:15.9]} 18... O-O {[%clk 0:01:05.9]} 19. Bd3 {[%clk 0:01:00.9]}
19... e5 {[%clk 0:00:47.3]} 20. Qxe5 {[%clk 0:00:41.5]} 20... Qxg4 {[%clk
0:00:46.9]} 21. Bf5 {[%clk 0:00:27.9]} 21... Qh5 {[%clk 0:00:34.6]} 22. Bxf6
{[%clk 0:00:27.8]} 22... Rae8 {[%clk 0:00:27.8]} 23. Qc3 {[%clk 0:00:20.2]}
23... Qxf5 {[%clk 0:00:22.1]} 24. Bxg7 {[%clk 0:00:20.5]} 24... Qf4+ {[%clk
0:00:13.9]} 25. Kb1 {[%clk 0:00:19.5]} 25... Qg4 {[%clk 0:00:13.7]} 26. Qd3
{[%clk 0:00:01]} 26... Qxg7 {[%clk 0:00:13.3]} 27. Rh1 {[%clk 0:00:01.1]} 27...
Kh8 {[%clk 0:00:13.6]} 28. a3 {[%clk 0:00:01.2]} 28... Rd8 {[%clk 0:00:13.8]}
29. Qf3 {[%clk 0:00:01.5]} 29... f5 {[%clk 0:00:14.1]} 30. h5 {[%clk 0:00:02]}
30... Qf7 {[%clk 0:00:13.7]} 31. h6 {[%clk 0:00:02.2]} 31... Qf6 {[%clk
0:00:14.3]} 32. Qb3 {[%clk 0:00:01.5]} 32... b6 {[%clk 0:00:13]} 33. Qa4 {[%clk
0:00:02.2]} 33... a5 {[%clk 0:00:12.8]} 34. Qf4 {[%clk 0:00:02.7]} 34... Rg8
{[%clk 0:00:11.5]} 35. c3 {[%clk 0:00:03.1]} 35... Rg6 {[%clk 0:00:11.6]} 36.
Qc7 {[%clk 0:00:03.3]} 36... Rdg8 {[%clk 0:00:09]} 37. Rd1 {[%clk 0:00:02.5]}
37... Rxh6 {[%clk 0:00:08.9]} 38. Rd7 {[%clk 0:00:02.9]} 38... Qe6 {[%clk
0:00:07.4]} 39. Kc2 {[%clk 0:00:01.8]} 39... Qe4+ {[%clk 0:00:07.1]} 40. Kb3
{[%clk 0:00:02]} 40... a4+ {[%clk 0:00:07]} 41. Ka2 {[%clk 0:00:02.6]} 41...
Qe6+ {[%clk 0:00:07.4]} 42. c4 {[%clk 0:00:03.1]} 42... b5 {[%clk 0:00:07.4]}
43. Rd5 {[%clk 0:00:02.5]} 43... bxc4 {[%clk 0:00:07.5]} 44. Re5 {[%clk
0:00:03.2]} 44... Qg6 {[%clk 0:00:06]} 45. f4 {[%clk 0:00:03.7]} 45... Qg7
{[%clk 0:00:06]} 46. Qxc4 {[%clk 0:00:04.1]} 46... Rf8 {[%clk 0:00:06.5]} 47.
Qxa4 {[%clk 0:00:04.2]} 47... Qf7+ {[%clk 0:00:06.1]} 48. b3 {[%clk 0:00:02.4]}
48... Rh2+ {[%clk 0:00:05.6]} 49. Kb1 {[%clk 0:00:03]} 49... Rg8 {[%clk
0:00:05.1]} 50. Qd4 {[%clk 0:00:03.2]} 50... Qg7 {[%clk 0:00:04]} 51. a4 {[%clk
0:00:02.3]} 51... Qg1+ {[%clk 0:00:04]} 52. Re1+ {[%clk 0:00:03.1]} 52... Qxd4
{[%clk 0:00:04]} 0-1

[Event "Early-Titled-Tuesday-Blitz-June-18-2024"]
[Site "Chess.com"]
[Date "2024.06.18"]
[Round "3"]
[White "CheckBits"]
[Black "pineapplehhh"]
[Result "1-0"]
[WhiteElo "2405"]
[BlackElo "2093"]
[TimeControl "180+1"]
[EndTime "8:30:31 PDT"]
[Termination "CheckBits won on time"]

1. d4 {[%clk 0:02:58.9]} 1... d5 {[%clk 0:02:59.1]} 2. Nf3 {[%clk 0:02:59.1]}
2... Nf6 {[%clk 0:02:58.4]} 3. Bf4 {[%clk 0:02:59.6]} 3... Bf5 {[%clk
0:02:57.5]} 4. c4 {[%clk 0:02:58]} 4... c6 {[%clk 0:02:56.7]} 5. Qb3 {[%clk
0:02:55.9]} 5... Qc8 {[%clk 0:02:37.2]} 6. e3 {[%clk 0:02:51.7]} 6... e6 {[%clk
0:02:36.2]} 7. h3 {[%clk 0:02:48.3]} 7... Nbd7 {[%clk 0:02:34.9]} 8. Nc3 {[%clk
0:02:48.2]} 8... Be7 {[%clk 0:02:29.1]} 9. Rc1 {[%clk 0:02:47.8]} 9... dxc4
{[%clk 0:02:25.2]} 10. Bxc4 {[%clk 0:02:47.3]} 10... Nb6 {[%clk 0:02:24.6]} 11.
Be2 {[%clk 0:02:45.1]} 11... O-O {[%clk 0:02:22.4]} 12. O-O {[%clk 0:02:35.5]}
12... Qd7 {[%clk 0:02:21.1]} 13. Bh2 {[%clk 0:02:30.8]} 13... Bd6 {[%clk
0:02:13.2]} 14. Ne5 {[%clk 0:02:30.6]} 14... Qe7 {[%clk 0:02:10.6]} 15. Rfd1
{[%clk 0:02:26.1]} 15... Ne4 {[%clk 0:02:08.2]} 16. Bf3 {[%clk 0:02:23.8]} 16...
Nxc3 {[%clk 0:02:03.4]} 17. bxc3 {[%clk 0:02:24.1]} 17... f6 {[%clk 0:02:02.8]}
18. Nd3 {[%clk 0:02:17.6]} 18... Bxh2+ {[%clk 0:02:01.3]} 19. Kxh2 {[%clk
0:02:18.1]} 19... Kh8 {[%clk 0:01:53.4]} 20. Nc5 {[%clk 0:02:08.6]} 20... e5
{[%clk 0:01:48]} 21. a4 {[%clk 0:02:04.6]} 21... e4 {[%clk 0:01:38.9]} 22. Be2
{[%clk 0:02:04.6]} 22... Rab8 {[%clk 0:01:21.8]} 23. a5 {[%clk 0:01:44.9]} 23...
Nd5 {[%clk 0:01:14.6]} 24. c4 {[%clk 0:01:35.5]} 24... Nc7 {[%clk 0:01:11.8]}
25. Rb1 {[%clk 0:01:27.7]} 25... b6 {[%clk 0:01:07.1]} 26. axb6 {[%clk
0:01:26.1]} 26... axb6 {[%clk 0:00:50.4]} 27. Na4 {[%clk 0:01:26.1]} 27... Na8
{[%clk 0:00:50]} 28. Qb4 {[%clk 0:01:22.7]} 28... Qxb4 {[%clk 0:00:46.8]} 29.
Rxb4 {[%clk 0:01:22.4]} 29... Rf7 {[%clk 0:00:43.6]} 30. Rdb1 {[%clk 0:01:21.7]}
30... Rfb7 {[%clk 0:00:42.6]} 31. d5 {[%clk 0:01:15.8]} 31... Bd7 {[%clk
0:00:36.2]} 32. Nc5 {[%clk 0:01:12.7]} 32... Ra7 {[%clk 0:00:30.2]} 33. Nxe4
{[%clk 0:01:11.1]} 33... cxd5 {[%clk 0:00:25.8]} 34. cxd5 {[%clk 0:01:10.3]}
34... Bf5 {[%clk 0:00:25.3]} 35. R1b2 {[%clk 0:01:07.4]} 35... Bxe4 {[%clk
0:00:22.5]} 36. Rxe4 {[%clk 0:01:06.9]} 36... Rd7 {[%clk 0:00:23.1]} 37. Rd4
{[%clk 0:01:03.7]} 37... f5 {[%clk 0:00:19.8]} 38. g4 {[%clk 0:01:01.6]} 38...
g6 {[%clk 0:00:18.6]} 39. Bb5 {[%clk 0:00:56.6]} 39... Rd6 {[%clk 0:00:17.5]}
40. gxf5 {[%clk 0:00:50.5]} 40... gxf5 {[%clk 0:00:17.3]} 41. f3 {[%clk
0:00:51]} 41... Nc7 {[%clk 0:00:17.4]} 42. e4 {[%clk 0:00:48.2]} 42... fxe4
{[%clk 0:00:16]} 43. fxe4 {[%clk 0:00:48.6]} 43... Kg7 {[%clk 0:00:15.4]} 44.
Bc6 {[%clk 0:00:35.3]} 44... b5 {[%clk 0:00:13.9]} 45. e5 {[%clk 0:00:33.6]}
45... Rdd8 {[%clk 0:00:13.9]} 46. Rg2+ {[%clk 0:00:31.3]} 46... Kh8 {[%clk
0:00:11]} 47. d6 {[%clk 0:00:27.1]} 47... Ne6 {[%clk 0:00:10.5]} 48. Rb4 {[%clk
0:00:27.2]} 48... Nc5 {[%clk 0:00:05.4]} 49. Rxb5 {[%clk 0:00:26.5]} 49... Rxb5
{[%clk 0:00:04.8]} 50. Bxb5 {[%clk 0:00:26.9]} 50... Ne4 {[%clk 0:00:03.3]} 51.
d7 {[%clk 0:00:24.3]} 51... Nc5 {[%clk 0:00:02]} 52. Rc2 {[%clk 0:00:21.4]}
52... Ne6 {[%clk 0:00:02.3]} 53. Rc6 {[%clk 0:00:16.1]} 53... Nd4 {[%clk
0:00:01.1]} 54. e6 {[%clk 0:00:15.4]} 1-0

[Event "Early-Titled-Tuesday-Blitz-June-18-2024"]
[Site "Chess.com"]
[Date "2024.06.18"]
[Round "3"]
[White "snowlord"]
[Black "DarkAlekhine"]
[Result "1-0"]
[WhiteElo "2964"]
[BlackElo "2738"]
[TimeControl "180+1"]
[EndTime "8:30:35 PDT"]
[Termination "snowlord won by resignation"]

1. d4 {[%clk 0:03:00.9]} 1... Nf6 {[%clk 0:02:58.2]} 2. Bg5 {[%clk 0:02:59.8]}
2... d5 {[%clk 0:02:55.1]} 3. e3 {[%clk 0:02:59.5]} 3... c5 {[%clk 0:02:50.2]}
4. Nd2 {[%clk 0:02:59.4]} 4... Nc6 {[%clk 0:02:49]} 5. c3 {[%clk 0:02:59.3]}
5... e6 {[%clk 0:02:46.3]} 6. Bd3 {[%clk 0:02:58.7]} 6... Qb6 {[%clk 0:02:45.1]}
7. Rb1 {[%clk 0:02:58.1]} 7... Bd7 {[%clk 0:02:38]} 8. Ngf3 {[%clk 0:02:54.8]}
8... h6 {[%clk 0:02:32.7]} 9. Bh4 {[%clk 0:02:43.3]} 9... Be7 {[%clk 0:02:29.6]}
10. O-O {[%clk 0:02:31.1]} 10... O-O {[%clk 0:02:26.1]} 11. Ne5 {[%clk
0:02:31.2]} 11... Be8 {[%clk 0:01:56]} 12. f4 {[%clk 0:02:23.6]} 12... Nd7
{[%clk 0:01:51]} 13. Bf2 {[%clk 0:02:08.4]} 13... f6 {[%clk 0:01:28.7]} 14. Qg4
{[%clk 0:01:27.5]} 14... fxe5 {[%clk 0:01:09.4]} 15. Qxe6+ {[%clk 0:01:27.6]}
15... Kh8 {[%clk 0:01:09.6]} 16. fxe5 {[%clk 0:01:28.1]} 16... Ncxe5 {[%clk
0:01:00.4]} 17. Qxb6 {[%clk 0:01:12.1]} 17... axb6 {[%clk 0:01:01.3]} 18. dxe5
{[%clk 0:01:13]} 18... Nxe5 {[%clk 0:01:01.6]} 19. Bc2 {[%clk 0:01:13.7]} 19...
Bb5 {[%clk 0:00:51.1]} 20. Rfd1 {[%clk 0:01:04.6]} 20... Nd3 {[%clk 0:00:51.2]}
21. Bg3 {[%clk 0:00:58.8]} 21... Rxa2 {[%clk 0:00:47.2]} 22. Bb3 {[%clk
0:00:46.3]} 22... Rxb2 {[%clk 0:00:47.1]} 23. Bxd5 {[%clk 0:00:46.7]} 23... Bg5
{[%clk 0:00:46.7]} 24. Nf1 {[%clk 0:00:37.6]} 24... Ba6 {[%clk 0:00:21.1]} 25.
h4 {[%clk 0:00:37.2]} 25... Bf6 {[%clk 0:00:20.6]} 26. c4 {[%clk 0:00:29.5]}
26... Rxb1 {[%clk 0:00:19.7]} 27. Rxb1 {[%clk 0:00:30.4]} 27... Nb4 {[%clk
0:00:20.1]} 28. Bf3 {[%clk 0:00:12]} 28... Bxc4 {[%clk 0:00:20]} 29. Bxb7 {[%clk
0:00:12.2]} 29... Bd3 {[%clk 0:00:20]} 30. Rd1 {[%clk 0:00:10.7]} 30... Rb8
{[%clk 0:00:19.5]} 31. Bxb8 {[%clk 0:00:10.1]} 31... c4 {[%clk 0:00:15.9]} 32.
Bd6 {[%clk 0:00:08.6]} 32... Nc2 {[%clk 0:00:15.8]} 33. Ba6 {[%clk 0:00:07.6]}
33... Bxf1 {[%clk 0:00:12.9]} 34. Rxf1 {[%clk 0:00:07]} 34... Nxe3 {[%clk
0:00:13.2]} 35. Re1 {[%clk 0:00:07.7]} 35... Bd4 {[%clk 0:00:12.9]} 36. Kh1
{[%clk 0:00:07]} 36... c3 {[%clk 0:00:12.9]} 37. Bd3 {[%clk 0:00:06.6]} 37...
Kg8 {[%clk 0:00:12.4]} 38. Bf4 {[%clk 0:00:06.5]} 38... Ng4 {[%clk 0:00:12.7]}
39. Bc4+ {[%clk 0:00:04.3]} 39... Kh7 {[%clk 0:00:11.9]} 40. Bb3 {[%clk
0:00:05.2]} 40... Kg6 {[%clk 0:00:11.5]} 41. g3 {[%clk 0:00:04.9]} 41... Nf2+
{[%clk 0:00:09.2]} 42. Kg2 {[%clk 0:00:05.6]} 42... Kf6 {[%clk 0:00:07.8]} 43.
Bc2 {[%clk 0:00:06.5]} 43... Ng4 {[%clk 0:00:07.7]} 44. Kf3 {[%clk 0:00:06]}
44... h5 {[%clk 0:00:07.2]} 45. Ke4 {[%clk 0:00:06.6]} 45... Bc5 {[%clk
0:00:07.5]} 46. Kd3 {[%clk 0:00:06.7]} 46... Bb4 {[%clk 0:00:05.5]} 47. Kc4
{[%clk 0:00:07.3]} 47... Ba5 {[%clk 0:00:05.8]} 48. Bg5+ {[%clk 0:00:06.1]}
48... Kf7 {[%clk 0:00:05.5]} 49. Kb3 {[%clk 0:00:06.9]} 49... g6 {[%clk
0:00:03.3]} 50. Re2 {[%clk 0:00:06.2]} 50... b5 {[%clk 0:00:02.7]} 51. Bd3
{[%clk 0:00:06.2]} 51... Bb6 {[%clk 0:00:03]} 52. Bxb5 {[%clk 0:00:06]} 52...
Bc7 {[%clk 0:00:03.2]} 53. Bf4 {[%clk 0:00:04.1]} 53... Bd8 {[%clk 0:00:03]} 54.
Bc4+ {[%clk 0:00:04.6]} 54... Kf8 {[%clk 0:00:02.9]} 55. Kxc3 {[%clk 0:00:05.5]}
55... Ba5+ {[%clk 0:00:03]} 56. Kb3 {[%clk 0:00:06.4]} 56... Bb6 {[%clk
0:00:03]} 57. Re6 {[%clk 0:00:07.2]} 1-0

[Event "Early-Titled-Tuesday-Blitz-June-18-2024"]
[Site "Chess.com"]
[Date "2024.06.18"]
[Round "3"]
[White "carokannlover213"]
[Black "Vladimir_Zakhartsov"]
[Result "0-1"]
[WhiteElo "2686"]
[BlackElo "2909"]
[TimeControl "180+1"]
[EndTime "8:30:35 PDT"]
[Termination "Vladimir_Zakhartsov won by checkmate"]

1. d4 {[%clk 0:03:00]} 1... e6 {[%clk 0:02:59]} 2. c4 {[%clk 0:02:57.7]} 2...
Bb4+ {[%clk 0:02:58.4]} 3. Bd2 {[%clk 0:02:57.1]} 3... Bxd2+ {[%clk 0:02:58.4]}
4. Qxd2 {[%clk 0:02:56.2]} 4... d6 {[%clk 0:02:58.3]} 5. g3 {[%clk 0:02:54.7]}
5... Nf6 {[%clk 0:02:57.2]} 6. Bg2 {[%clk 0:02:55]} 6... O-O {[%clk 0:02:56.2]}
7. Nf3 {[%clk 0:02:55.5]} 7... Qe7 {[%clk 0:02:56.2]} 8. O-O {[%clk 0:02:55.1]}
8... e5 {[%clk 0:02:56.2]} 9. Nc3 {[%clk 0:02:53.9]} 9... Nc6 {[%clk 0:02:49.6]}
10. d5 {[%clk 0:02:48]} 10... Nb8 {[%clk 0:02:39.5]} 11. Qc2 {[%clk 0:02:45.5]}
11... a5 {[%clk 0:02:38.2]} 12. Nd2 {[%clk 0:02:42.2]} 12... Na6 {[%clk
0:02:36.7]} 13. b3 {[%clk 0:02:42.4]} 13... Nd7 {[%clk 0:02:34.6]} 14. a3 {[%clk
0:02:39.8]} 14... f5 {[%clk 0:02:33.4]} 15. e3 {[%clk 0:02:23.8]} 15... e4
{[%clk 0:02:30.1]} 16. Kh1 {[%clk 0:02:17.8]} 16... Nac5 {[%clk 0:02:27.5]} 17.
f3 {[%clk 0:02:11.6]} 17... exf3 {[%clk 0:02:18.6]} 18. Nxf3 {[%clk 0:02:12.1]}
18... Nf6 {[%clk 0:02:10.6]} 19. b4 {[%clk 0:02:08.8]} 19... Nce4 {[%clk
0:02:08.4]} 20. Nxe4 {[%clk 0:02:02.7]} 20... Nxe4 {[%clk 0:02:01]} 21. Nd4
{[%clk 0:02:02.7]} 21... axb4 {[%clk 0:01:47.8]} 22. axb4 {[%clk 0:02:00]} 22...
Rxa1 {[%clk 0:01:47]} 23. Rxa1 {[%clk 0:02:00.9]} 23... Nf6 {[%clk 0:01:47.5]}
24. Nxf5 {[%clk 0:01:15.4]} 24... Qe5 {[%clk 0:01:41.6]} 25. Rf1 {[%clk
0:01:11.6]} 25... Ng4 {[%clk 0:01:30.8]} 26. Be4 {[%clk 0:00:48.4]} 26... g6
{[%clk 0:01:24.6]} 27. h3 {[%clk 0:00:11.2]} 27... gxf5 {[%clk 0:01:15]} 28.
hxg4 {[%clk 0:00:07.1]} 28... Qxe4+ {[%clk 0:01:13.3]} 29. Qxe4 {[%clk
0:00:07.5]} 29... fxe4 {[%clk 0:01:14.2]} 30. Ra1 {[%clk 0:00:07.3]} 30... Bxg4
{[%clk 0:01:12.3]} 31. Ra7 {[%clk 0:00:07.4]} 31... Rb8 {[%clk 0:01:10.9]} 32.
Kg2 {[%clk 0:00:06]} 32... Kf7 {[%clk 0:01:07.9]} 33. c5 {[%clk 0:00:06]} 33...
Ke7 {[%clk 0:01:07.4]} 34. c6 {[%clk 0:00:04.5]} 34... Bc8 {[%clk 0:01:05]} 35.
b5 {[%clk 0:00:03.9]} 35... Kd8 {[%clk 0:01:03]} 36. Ra4 {[%clk 0:00:02.2]}
36... bxc6 {[%clk 0:00:58.6]} 37. bxc6 {[%clk 0:00:03.1]} 37... Rb2+ {[%clk
0:00:54.7]} 38. Kg1 {[%clk 0:00:03.5]} 38... Rd2 {[%clk 0:00:51.5]} 39. Ra5
{[%clk 0:00:02.2]} 39... h5 {[%clk 0:00:47.1]} 40. Kf1 {[%clk 0:00:02.5]} 40...
Bh3+ {[%clk 0:00:27.7]} 41. Ke1 {[%clk 0:00:02.5]} 41... Rd3 {[%clk 0:00:27.5]}
42. Ra8+ {[%clk 0:00:02.6]} 42... Ke7 {[%clk 0:00:27.3]} 43. Ke2 {[%clk
0:00:03.5]} 43... Bg4+ {[%clk 0:00:26.8]} 44. Kf2 {[%clk 0:00:03.2]} 44... Rd2+
{[%clk 0:00:26.8]} 45. Ke1 {[%clk 0:00:03.8]} 45... Re2+ {[%clk 0:00:26.6]} 46.
Kf1 {[%clk 0:00:04.7]} 46... Rxe3 {[%clk 0:00:26.4]} 47. Ra7 {[%clk 0:00:05.6]}
47... Kd8 {[%clk 0:00:24.2]} 48. Ra8+ {[%clk 0:00:05.4]} 48... Bc8 {[%clk
0:00:23.7]} 49. Kf2 {[%clk 0:00:05.8]} 49... Rf3+ {[%clk 0:00:23.9]} 50. Kg2
{[%clk 0:00:06.4]} 50... Rd3 {[%clk 0:00:24.1]} 51. Ra5 {[%clk 0:00:07]} 51...
Rd2+ {[%clk 0:00:24.3]} 52. Kf1 {[%clk 0:00:06.7]} 52... e3 {[%clk 0:00:24.5]}
53. Ke1 {[%clk 0:00:07.1]} 53... Bg4 {[%clk 0:00:23.5]} 54. Ra8+ {[%clk
0:00:06.9]} 54... Ke7 {[%clk 0:00:23.2]} 55. Ra1 {[%clk 0:00:06.8]} 55... Rxd5
{[%clk 0:00:22.5]} 56. Kf1 {[%clk 0:00:06.4]} 56... Rd1+ {[%clk 0:00:22]} 57.
Rxd1 {[%clk 0:00:06.8]} 57... e2+ {[%clk 0:00:20.9]} 58. Kg2 {[%clk 0:00:07.7]}
58... exd1=Q {[%clk 0:00:19.3]} 59. Kh2 {[%clk 0:00:08.6]} 59... Qe2+ {[%clk
0:00:18.3]} 60. Kg1 {[%clk 0:00:08.7]} 60... Bh3 {[%clk 0:00:17.6]} 61. g4
{[%clk 0:00:09.6]} 61... Qg2# {[%clk 0:00:17.6]} 0-1